bitfinex/quotes_SOLUSD_20250924
["timestamp","ask_amount","ask_price","bid_price","bid_amount"]
[1758692608432,1e-08,210.04,210.03,53.08323011]
[1758692610342,1e-08,210.04,210.03,57.84445469]
[1758692611043,1e-08,210.04,210.03,59.75253301]
[1758692613839,1e-08,210.04,210.03,22.63253301]
[1758692614045,1e-08,210.04,210.03,59.75253301]
[1758692614538,1e-08,210.04,210.03,58.89504352]
[1758692615516,1e-08,210.04,210.03,56.9869652]
[1758692616329,1e-08,210.04,210.03,55.47681859]
[1758692616529,1e-08,210.04,210.03,56.9869652]
[1758692618432,1e-08,210.04,210.03,19.8669652]
[1758692618752,1e-08,210.04,210.03,56.9669652]
[1758692620742,1e-08,210.04,210.03,57.44308765]
[1758692621053,0.1,210.07,210.04,13.59559401]
[1758692621250,0.1,210.07,210.06,15.10574062]
[1758692621632,1e-08,210.07,210.06,15.10574062]
[1758692622734,1e-08,210.07,210.06,19.86628522]
[1758692625147,1e-08,210.07,210.06,56.96628522]
[1758692627759,0.67,210.11,210.1,13.59559401]
[1758692628041,0.67,210.14,210.1,52.20574062]
[1758692628255,0.67,210.13,210.1,53.1857527]
[1758692628441,0.67,210.13,210.12,15.10574062]
[1758692628648,0.67,210.13,210.12,52.20574062]
[1758692628853,0.67,210.13,210.12,19.86492584]
[1758692629150,0.67,210.13,210.12,56.96492584]
[1758692630654,0.67,210.15,210.13,13.59559401]
[1758692630969,0.67,210.15,210.14,56.96447289]
[1758692631264,3.15958803,210.19,210.15,13.59559401]
[1758692631439,2.48958803,210.19,210.18,15.10574062]
[1758692631635,2.48731808,210.2,210.18,15.10574062]
[1758692631636,0.1,210.26,210.19,13.59559401]
[1758692631841,0.1,210.26,210.21,13.59559401]
[1758692632060,2.25872838,210.26,210.23,13.59559401]
[1758692632231,2.25872838,210.26,210.24,37.18]
[1758692632438,2.48656533,210.27,210.25,37.18]
[1758692632657,28.48656533,210.27,210.25,37.18]
[1758692632850,33.24240453,210.27,210.2,1.51014661]
[1758692633053,33.24240453,210.27,210.21,50.77559401]
[1758692633447,33.24240453,210.27,210.21,52.28574062]
[1758692633964,33.24240453,210.27,210.21,50.77559401]
[1758692634168,0.67,210.26,210.21,50.77559401]
[1758692634343,0.67,210.25,210.21,50.77559401]
[1758692634537,0.67,210.24,210.21,50.77559401]
[1758692634861,0.67,210.23,210.21,50.77559401]
[1758692635063,0.67,210.22,210.21,57.04288823]
[1758692635258,0.67,210.22,210.21,55.53274162]
[1758692635445,0.67,210.22,210.16,14.44343547]
[1758692635755,0.67,210.22,210.13,26.66]
[1758692635756,0.67,210.21,210.2,13.59559401]
[1758692635951,0.67,210.21,210.2,50.83559401]
[1758692636745,0.67,210.23,210.2,52.34574062]
[1758692636940,0.67,210.22,210.2,52.34574062]
[1758692637165,7.24245367,210.27,210.2,50.83559401]
[1758692637351,0.67,210.21,210.2,50.83559401]
[1758692637557,0.67,210.21,210.2,55.59296793]
[1758692637859,1.19129594,210.26,210.2,55.59296793]
[1758692638057,0.67,210.25,210.2,55.59296793]
[1758692638258,0.67,210.24,210.2,55.59296793]
[1758692638455,0.67,210.23,210.2,55.59296793]
[1758692638664,0.67,210.22,210.2,55.59296793]
[1758692638964,0.67,210.21,210.2,18.35296793]
[1758692639161,0.67,210.21,210.15,13.59559401]
[1758692639467,0.67,210.2,210.19,13.59559401]
[1758692639663,0.67,210.23,210.19,52.32574062]
[1758692639867,0.67,210.22,210.19,52.32574062]
[1758692640066,0.67,210.21,210.19,52.32574062]
[1758692640266,0.67,210.23,210.19,52.32574062]
[1758692640466,0.67,210.22,210.19,52.32574062]
[1758692640643,2.48656533,210.27,210.19,52.32574062]
[1758692640845,0.67,210.26,210.19,52.32574062]
[1758692641044,0.67,210.25,210.2,1.51014661]
[1758692641270,0.67,210.24,210.21,37.22]
[1758692641469,0.67,210.23,210.21,37.22]
[1758692641666,0.67,210.25,210.22,13.59559401]
[1758692641858,1.19123271,210.26,210.23,37.2]
[1758692642059,1.86123271,210.26,210.23,37.2]
[1758692642256,0.67,210.26,210.23,37.2]
[1758692642455,0.67,210.25,210.23,37.2]
[1758692642654,2.48656533,210.27,210.24,15.10574062]
[1758692642862,0.67,210.26,210.25,50.79559401]
[1758692646088,0.67,210.26,210.25,37.18]
[1758692647004,5.42601636,210.26,210.25,37.18]
[1758692647662,0.67,210.26,210.25,37.18]
[1758692648083,5.42601636,210.26,210.25,37.18]
[1758692651388,32.61717593,210.26,210.25,37.14]
[1758692655498,32.6173125,210.26,210.25,37.14]
[1758692657884,32.6573125,210.26,210.25,37.14]
[1758692658881,1.90129614,210.26,210.25,37.14]
[1758692659271,6.6573125,210.26,210.25,37.14]
[1758692660276,5.46601636,210.26,210.25,37.14]
[1758692661072,6.65724329,210.26,210.25,37.14]
[1758692661383,5.46601636,210.26,210.25,37.14]
[1758692662293,2.48656533,210.27,210.25,37.14]
[1758692664700,2.48656533,210.27,210.25,41.89623193]
[1758692664996,5.46490966,210.31,210.25,42.56623193]
[1758692665196,3.67745754,210.3,210.25,42.56623193]
[1758692665402,1.19105384,210.29,210.25,42.56623193]
[1758692667382,1.19105384,210.29,210.26,0.67]
[1758692667885,1.19105384,210.29,210.25,41.89623193]
[1758692668294,1.90105384,210.29,210.25,41.89623193]
[1758692668791,1.19105384,210.29,210.25,42.56623193]
[1758692669576,1.19105384,210.29,210.26,0.67]
[1758692669777,1.19105384,210.29,210.25,41.89623193]
[1758692670076,1.19105384,210.29,210.25,42.56623193]
[1758692670278,1.19105384,210.29,210.26,0.67]
[1758692670588,1.19105384,210.29,210.25,41.89623193]
[1758692670794,1.19105384,210.29,210.26,0.67]
[1758692671298,1.19105384,210.29,210.26,4.75592098]
[1758692671495,1.19105384,210.29,210.27,0.67]
[1758692671704,1.19105384,210.29,210.28,37.1]
[1758692674486,1.90105384,210.29,210.28,37.1]
[1758692674900,6.6563917,210.29,210.21,0.67]
[1758692675100,1.19105384,210.28,210.22,37.1]
[1758692675295,26.0,210.26,210.23,37.1]
[1758692675509,1.90105384,210.25,210.24,37.12]
[1758692675808,1.90105384,210.25,210.23,37.12]
[1758692675982,1.90105384,210.24,210.23,37.12]
[1758692676987,6.65752263,210.24,210.23,37.12]
[1758692677591,6.65752263,210.24,210.18,14.26559401]
[1758692677794,1.19105384,210.23,210.19,37.1]
[1758692678097,1.19105384,210.22,210.19,37.1]
[1758692678407,5.46646879,210.24,210.19,37.77]
[1758692678610,1.19134034,210.23,210.19,37.77]
[1758692678803,1.19134034,210.22,210.19,37.77]
[1758692679000,5.46646879,210.24,210.19,37.1]
[1758692679205,1.19134065,210.23,210.19,37.1]
[1758692679386,1.90134065,210.22,210.2,37.1]
[1758692679582,1.90134065,210.21,210.2,37.1]
[1758692682406,1.19134065,210.21,210.2,37.1]
[1758692682889,1.90134065,210.21,210.2,37.1]
[1758692683291,0.71,210.21,210.2,37.1]
[1758692683788,6.65848826,210.21,210.2,37.1]
[1758692684290,1.90134065,210.21,210.2,37.1]
[1758692685503,6.65848826,210.21,210.15,37.1]
[1758692685808,1.90134065,210.2,210.15,37.1]
[1758692685990,1.90134065,210.19,210.15,37.1]
[1758692686191,26.0,210.17,210.15,37.1]
[1758692686487,6.65962005,210.16,210.15,37.1]
[1758692688414,20.9702075,210.16,210.15,37.1]
[1758692689823,26.0,210.13,210.11,37.14]
[1758692690008,27.90134065,210.12,210.11,37.14]
[1758692690408,32.66052587,210.12,210.11,37.14]
[1758692691149,44.55848893,210.12,210.07,37.14]
[1758692691428,1.91214625,210.11,210.07,37.14]
[1758692691719,0.72,210.1,210.07,37.14]
[1758692692221,4.75986481,210.09,210.07,37.14]
[1758692692625,26.0,210.08,210.07,37.14]
[1758692693723,0.72,210.19,210.08,13.59559401]
[1758692694022,26.0,210.15,210.09,3.00632834]
[1758692694226,26.0,210.15,210.1,5.40963826]
[1758692694399,26.0,210.15,210.11,37.85]
[1758692694600,4.75828289,210.16,210.12,0.65]
[1758692694921,26.0,210.15,210.12,0.65]
[1758692695529,28.48812723,210.15,210.12,0.65]
[1758692697237,2.48812723,210.15,210.12,4.75918116]
[1758692697447,2.48812723,210.15,210.13,0.65]
[1758692697743,2.48812723,210.15,210.14,0.65]
[1758692697944,2.48812723,210.15,210.14,14.24559401]
[1758692698147,14.30853982,210.21,210.14,14.24559401]
[1758692698326,2.48763677,210.19,210.15,37.2]
[1758692698528,2.48763677,210.19,210.15,37.85]
[1758692699038,2.48763677,210.19,210.15,42.60841012]
[1758692702418,2.48763677,210.19,210.16,0.65]
[1758692702728,2.48763677,210.19,210.15,41.95841012]
[1758692703038,2.48763677,210.19,210.15,42.60841012]
[1758692703238,2.48763677,210.19,210.15,41.95841012]
[1758692703421,3.20763677,210.19,210.15,41.95841012]
[1758692703621,2.48763677,210.19,210.15,42.60841012]
[1758692705523,0.72,210.18,210.15,37.2]
[1758692706742,0.72,210.18,210.16,37.12]
[1758692707922,2.48763677,210.19,210.16,37.12]
[1758692708237,3.20763677,210.19,210.16,37.12]
[1758692708541,7.96524944,210.19,210.16,37.12]
[1758692708948,0.72,210.18,210.16,37.12]
[1758692709130,0.72,210.17,210.16,37.12]
[1758692709336,0.72,210.17,210.16,37.1]
[1758692709643,26.0,210.14,210.08,0.65]
[1758692709851,26.0,210.14,210.09,37.1]
[1758692710047,26.72,210.14,210.09,37.75]
[1758692710446,0.72,210.13,210.09,37.75]
[1758692710631,0.72,210.13,210.09,37.1]
[1758692710951,5.47906028,210.13,210.09,37.1]
[1758692711127,30.75873896,210.14,210.09,37.75]
[1758692711326,30.75873896,210.14,210.09,42.50986469]
[1758692711526,0.72,210.14,210.09,42.50986469]
[1758692712143,0.72,210.13,210.1,37.1]
[1758692712343,0.72,210.12,210.1,37.1]
[1758692712842,14.31263568,210.14,210.1,37.1]
[1758692713048,0.72,210.14,210.1,37.1]
[1758692713236,26.0,210.15,210.1,37.1]
[1758692713444,0.72,210.13,210.1,37.1]
[1758692713850,14.31263567,210.14,210.1,37.77]
[1758692714046,26.67,210.15,210.1,37.77]
[1758692714233,0.67,210.14,210.1,37.1]
[1758692714441,14.31195287,210.15,210.11,0.67]
[1758692714627,5.42825915,210.17,210.11,0.67]
[1758692714823,5.42825915,210.17,210.11,5.42938996]
[1758692715031,0.67,210.16,210.11,5.42938996]
[1758692715347,0.67,210.15,210.11,5.42938996]
[1758692716053,5.42825915,210.17,210.11,5.42938996]
[1758692716345,5.42835938,210.16,210.1,37.1]
[1758692716550,31.42835938,210.16,210.1,37.1]
[1758692716746,30.75835938,210.16,210.1,41.8596312]
[1758692716935,0.67,210.15,210.1,41.8596312]
[1758692717250,0.67,210.15,210.1,42.5296312]
[1758692719353,6.62037923,210.15,210.1,37.77]
[1758692719658,5.42853105,210.15,210.1,37.77]
[1758692720157,26.67,210.16,210.11,0.67]
[1758692720345,1.19186471,210.15,210.11,0.67]
[1758692720854,1.19186471,210.15,210.12,0.66]
[1758692721039,1.19186471,210.15,210.1,42.5195596]
[1758692721242,1.91186471,210.15,210.1,42.5195596]
[1758692721858,1.19186471,210.15,210.11,0.66]
[1758692722150,0.72,210.14,210.1,37.1]
[1758692722353,0.72,210.14,209.99,54.33465688]
[1758692722354,26.0,210.12,210.02,38.6]
[1758692722529,1.91202066,210.11,210.03,51.35559401]
[1758692722729,1.91202066,210.11,210.04,0.66]
[1758692723155,16.22670514,210.11,210.03,37.1]
[1758692723344,1.19202066,210.1,210.03,37.1]
[1758692723664,0.72,210.09,210.03,37.1]
[1758692723840,1.91202066,210.09,210.03,37.1]
[1758692724031,4.76009139,210.08,210.03,37.1]
[1758692724235,5.48009139,210.08,210.03,37.76]
[1758692724531,5.48009139,210.08,210.03,37.1]
[1758692724858,0.72,210.07,210.01,0.2]
[1758692725156,1.91230323,210.07,210.02,37.1]
[1758692725349,26.0,210.05,210.02,37.1]
[1758692725552,26.72,210.05,210.02,37.1]
[1758692725752,0.72,210.04,210.02,37.1]
[1758692726134,5.4811387,210.04,210.02,37.1]
[1758692726357,0.72,210.04,210.02,37.1]
[1758692727029,0.72,210.07,210.02,37.1]
[1758692727233,26.0,210.05,210.02,37.1]
[1758692728754,28.48912642,210.06,210.03,0.66]
[1758692728965,28.48912642,210.06,210.02,41.86140132]
[1758692729258,28.48912642,210.06,210.02,42.52140132]
[1758692729860,29.20912642,210.06,210.02,42.52140132]
[1758692730037,28.48912642,210.06,210.02,42.52140132]
[1758692730466,2.48912642,210.06,210.02,42.52140132]
[1758692730760,1.43760406,210.06,210.02,42.52140132]
[1758692730972,26.0,210.07,210.02,42.52140132]
[1758692731150,31.48033034,210.07,210.02,42.52140132]
[1758692731459,0.72,210.06,210.02,37.1]
[1758692731659,0.72,210.05,210.02,37.1]
[1758692731832,0.72,210.04,210.01,0.2]
[1758692732036,0.72,210.04,210.02,37.12]
[1758692732452,31.4805467,210.06,210.02,37.12]
[1758692732766,0.72,210.05,210.02,37.12]
[1758692733073,26.0,210.06,210.02,37.12]
[1758692733371,0.72,210.05,210.02,37.12]
[1758692733546,0.72,210.04,210.02,37.12]
[1758692734562,0.72,210.03,210.02,37.12]
[1758692735462,19.07750853,210.08,210.02,37.12]
[1758692735667,0.72,210.07,210.02,37.12]
[1758692735971,0.72,210.06,210.02,37.12]
[1758692736180,0.72,210.05,210.02,37.12]
[1758692736471,0.72,210.04,210.02,37.12]
[1758692736646,5.48122458,210.03,210.02,37.12]
[1758692739944,5.48122458,210.03,210.01,37.32]
[1758692740143,0.72,210.02,210.01,37.32]
[1758692740555,0.72,210.02,210.01,0.2]
[1758692741060,5.48145129,210.02,210.01,0.2]
[1758692741869,9.32440264,210.02,210.01,0.2]
[1758692742371,26.0,209.99,209.96,34.7]
[1758692742546,0.72,209.98,209.96,34.7]
[1758692742746,0.72,209.97,209.96,34.7]
[1758692743359,5.48258513,209.97,209.96,34.7]
[1758692744774,5.48258513,209.97,209.96,0.2]
[1758692745969,26.0,209.97,209.96,0.2]
[1758692747074,30.76258513,209.97,209.96,0.2]
[1758692748174,31.48258513,209.97,209.96,0.2]
[1758692751277,33.39275919,209.97,209.96,0.2]
[1758692751454,32.67275919,209.97,209.96,0.2]
[1758692751649,30.76258513,209.97,209.96,0.2]
[1758692753279,1.91008285,209.98,209.96,0.2]
[1758692753484,4.7622792,209.99,209.96,0.87]
[1758692753694,26.0,209.97,209.96,0.2]
[1758692754055,26.7,209.97,209.96,0.2]
[1758692755771,31.46258513,209.97,209.96,0.2]
[1758692758478,32.65572805,209.97,209.96,0.2]
[1758692758990,46.98340195,209.97,209.96,0.2]
[1758692759562,32.65572805,209.97,209.96,0.2]
[1758692759787,31.46258513,209.97,209.96,0.2]
[1758692760469,32.65568634,209.97,209.96,0.2]
[1758692760794,31.46258513,209.97,209.96,0.2]
[1758692761599,33.95340604,209.97,209.96,0.2]
[1758692762171,33.25340604,209.97,209.96,0.2]
[1758692762375,33.95340604,209.97,209.96,0.2]
[1758692763197,33.25340604,209.97,209.96,0.2]
[1758692763492,33.95340604,209.97,209.96,0.2]
[1758692763699,35.14647978,209.97,209.96,0.2]
[1758692765599,37.05674507,209.97,209.96,0.2]
[1758692767194,48.96320789,209.97,209.93,0.2]
[1758692767392,1.19307374,209.96,209.93,0.2]
[1758692767902,15.02904258,209.95,209.93,0.2]
[1758692768088,1.19307374,209.94,209.93,0.2]
[1758692768403,1.89307374,209.94,209.93,0.2]
[1758692769198,6.65633943,209.94,209.93,0.2]
[1758692772736,26.0,209.91,209.89,37.81]
[1758692773026,30.76417341,209.9,209.87,0.67]
[1758692773497,42.67460694,209.9,209.87,0.67]
[1758692773894,42.67460694,209.9,209.84,0.2]
[1758692774090,42.67460694,209.9,209.85,0.72]
[1758692774402,30.76417341,209.9,209.85,0.72]
[1758692774626,30.76417341,209.9,209.84,0.2]
[1758692774627,1.9034167,209.89,209.84,0.2]
[1758692774804,30.76530855,209.85,209.84,0.2]
[1758692775122,31.95872525,209.85,209.84,0.2]
[1758692775491,32.66872525,209.85,209.84,0.2]
[1758692775697,34.57999458,209.85,209.84,0.2]
[1758692776610,33.86999458,209.85,209.84,0.2]
[1758692777325,34.57999458,209.85,209.84,0.2]
[1758692777842,46.49326596,209.85,209.78,0.72]
[1758692778135,26.0,209.82,209.78,0.72]
[1758692778305,1.1934167,209.81,209.71,37.14]
[1758692778508,1.1934167,209.81,209.72,0.72]
[1758692779323,4.76644423,209.8,209.72,0.72]
[1758692779920,16.68255481,209.8,209.72,0.72]
[1758692780628,20.57855871,209.8,209.72,0.72]
[1758692781022,16.68255481,209.8,209.72,5.48810711]
[1758692781327,16.68255481,209.8,209.73,0.7]
[1758692781522,45.10330827,209.82,209.74,13.59559401]
[1758692781723,26.0,209.83,209.75,0.7]
[1758692782428,30.7657631,209.83,209.75,0.7]
[1758692783010,2.49435744,209.82,209.75,0.7]
[1758692783325,26.0,209.81,209.75,0.7]
[1758692783916,26.0,209.81,209.75,5.46740587]
[1758692784113,26.0,209.81,209.76,0.7]
[1758692786012,26.0,209.81,209.76,5.46731276]
[1758692786215,26.0,209.81,209.77,0.7]
[1758692787320,26.0,209.81,209.78,0.7]
[1758692787519,26.0,209.81,209.79,0.7]
[1758692788115,26.0,209.8,209.79,0.7]
[1758692788761,26.0,209.81,209.79,0.7]
[1758692788955,26.0,209.81,209.8,0.7]
[1758692789107,2.49435744,209.82,209.8,0.7]
[1758692789435,2.49435744,209.82,209.81,0.7]
[1758692790105,2.49435744,209.82,209.79,0.7]
[1758692790311,2.49435744,209.82,209.8,0.7]
[1758692792011,28.49435744,209.82,209.8,0.7]
[1758692792650,0.71,209.81,209.77,0.7]
[1758692792821,0.71,209.81,209.71,49.06080617]
[1758692792822,2.49435744,209.82,209.75,13.59559401]
[1758692793025,2.49435744,209.82,209.78,0.7]
[1758692793337,3.20435744,209.82,209.78,0.7]
[1758692793852,7.97044135,209.82,209.78,0.7]
[1758692794922,7.26044135,209.82,209.76,13.59559401]
[1758692795128,7.26044135,209.82,209.77,0.7]
[1758692795328,7.97044135,209.82,209.78,0.7]
[1758692795522,26.0,209.81,209.78,0.7]
[1758692795738,31.47630386,209.81,209.76,14.29559401]
[1758692795936,30.76630386,209.81,209.77,0.7]
[1758692796137,0.71,209.8,209.75,37.84]
[1758692796339,0.71,209.8,209.76,0.7]
[1758692796854,0.71,209.79,209.75,37.14]
[1758692797041,0.71,209.79,209.75,37.84]
[1758692797845,31.47630386,209.81,209.76,0.7]
[1758692798027,31.47630386,209.81,209.77,0.7]
[1758692798227,0.71,209.8,209.75,37.84]
[1758692798537,0.71,209.8,209.76,0.7]
[1758692799449,5.476584,209.8,209.76,0.7]
[1758692799750,5.476584,209.8,209.77,0.7]
[1758692800126,5.476584,209.8,209.75,37.84]
[1758692800328,5.476584,209.8,209.76,0.7]
[1758692803257,4.766584,209.8,209.76,0.7]
[1758692803428,5.476584,209.8,209.76,0.7]
[1758692804944,0.71,209.79,209.75,37.14]
[1758692805150,0.71,209.78,209.75,37.14]
[1758692805357,16.68269458,209.8,209.75,37.14]
[1758692805543,0.71,209.78,209.75,37.14]
[1758692806855,26.0,209.79,209.75,37.14]
[1758692807160,26.71,209.79,209.75,37.84]
[1758692807655,26.71,209.79,209.76,0.7]
[1758692807656,26.0,209.79,209.76,0.7]
[1758692807955,26.0,209.79,209.77,0.7]
[1758692808163,26.0,209.79,209.75,42.60746688]
[1758692808348,26.0,209.79,209.76,0.7]
[1758692809736,26.71,209.79,209.76,0.7]
[1758692810135,26.0,209.79,209.77,0.7]
[1758692810342,26.0,209.79,209.78,0.7]
[1758692811863,26.0,209.8,209.76,5.44713466]
[1758692812158,26.0,209.8,209.77,0.68]
[1758692812351,26.0,209.79,209.77,0.68]
[1758692813361,7.94040883,209.82,209.77,0.68]
[1758692813540,0.68,209.81,209.76,18.36272867]
[1758692813735,0.68,209.8,209.76,19.04272867]
[1758692813941,0.68,209.79,209.76,13.59559401]
[1758692814153,2.49435744,209.82,209.79,13.59559401]
[1758692814375,0.68,209.91,209.82,13.59559401]
[1758692814669,0.68,209.91,209.85,15.96345968]
[1758692814836,0.68,209.91,209.87,13.59559401]
[1758692815159,1.19335553,209.92,209.88,37.24]
[1758692815361,0.68,209.91,209.88,37.24]
[1758692816335,1.87320925,209.93,209.89,13.59559401]
[1758692816537,1.19320925,209.92,209.89,13.59559401]
[1758692816738,0.68,209.91,209.89,13.59559401]
[1758692817253,0.68,209.93,209.89,13.59559401]
[1758692817659,27.87317496,209.94,209.89,13.59559401]
[1758692817971,1.19317496,209.93,209.91,13.59559401]
[1758692818143,26.0,209.94,209.92,37.2]
[1758692818347,0.68,209.93,209.92,50.79559401]
[1758692818947,26.0,209.93,209.92,50.79559401]
[1758692819462,3.17342645,209.95,209.92,50.79559401]
[1758692819643,38.20699471,209.99,209.93,13.59559401]
[1758692819845,1.87298659,209.98,209.93,18.35886946]
[1758692820066,26.0,209.96,209.93,18.35886946]
[1758692820367,0.68,209.97,209.93,18.35886946]
[1758692820761,26.68,209.97,209.93,18.35886946]
[1758692821066,18.05431503,210.03,209.95,15.96345968]
[1758692821067,0.68,210.02,209.95,15.96345968]
[1758692821279,0.68,210.02,209.93,16.67200693]
[1758692821280,1.19276404,210.02,209.97,13.59559401]
[1758692821658,26.68,210.04,209.97,13.59559401]
[1758692821858,1.19267444,210.03,209.97,13.59559401]
[1758692822260,26.0,210.03,209.98,4.76235831]
[1758692822585,0.68,210.04,210.0,13.59559401]
[1758692822876,26.0,210.03,210.0,13.59559401]
[1758692823447,0.1,210.05,210.0,18.35746722]
[1758692823654,0.1,210.05,210.0,20.72533289]
[1758692824152,0.1,210.05,210.02,2.36786567]
[1758692824361,0.1,210.05,210.04,13.59559401]
[1758692825767,0.1,210.05,210.04,15.96345968]
[1758692826664,0.1,210.05,210.04,17.87162903]
[1758692826861,1e-08,210.05,210.04,17.87162903]
[1758692827064,1e-08,210.06,210.05,18.35636525]
[1758692828872,1e-08,210.06,210.05,32.80164588]
[1758692830158,0.78,210.18,210.14,13.59559401]
[1758692830358,0.78,210.18,210.13,2.36786567]
[1758692830359,0.78,210.18,210.16,13.59559401]
[1758692831075,0.1,210.18,210.16,15.96345968]
[1758692831471,0.1,210.18,210.17,18.35364701]
[1758692832559,0.68,210.27,210.21,13.59559401]
[1758692832784,0.68,210.27,210.2,26.0]
[1758692832785,0.68,210.27,210.23,15.96345968]
[1758692832961,0.1,210.28,210.23,15.96345968]
[1758692833170,0.68,210.26,210.23,15.96345968]
[1758692833374,0.71,210.25,210.23,15.96345968]
[1758692833677,0.71,210.25,210.23,20.72009716]
[1758692833882,0.1,210.28,210.23,15.96345968]
[1758692834073,0.71,210.24,210.23,15.96345968]
[1758692834270,0.71,210.24,210.23,13.59559401]
[1758692834798,0.71,210.24,210.2,13.59559401]
[1758692834995,0.71,210.23,210.15,13.59559401]
[1758692835197,0.71,210.22,210.17,13.59559401]
[1758692835363,0.71,210.21,210.13,13.59559401]
[1758692835566,0.71,210.2,210.15,13.59559401]
[1758692835896,0.71,210.19,210.15,13.59559401]
[1758692836072,0.71,210.18,210.15,15.96345968]
[1758692836387,0.71,210.17,210.15,13.59559401]
[1758692836795,0.71,210.16,210.11,7.12720667]
[1758692836959,0.71,210.15,210.12,50.89559401]
[1758692837159,0.71,210.14,210.12,50.89559401]
[1758692837793,26.0,210.22,210.12,55.65474362]
[1758692838098,0.71,210.16,210.13,2.36786567]
[1758692838296,0.71,210.18,210.13,2.36786567]
[1758692838469,26.71,210.21,210.16,13.59559401]
[1758692838668,0.71,210.2,210.18,13.59559401]
[1758692838862,0.71,210.22,210.2,13.59559401]
[1758692839095,4.8557095,210.28,210.22,13.59559401]
[1758692839280,26.0,210.26,210.22,13.59559401]
[1758692839791,0.71,210.25,210.22,13.59559401]
[1758692840099,0.71,210.24,210.22,13.59559401]
[1758692840279,0.71,210.23,210.22,13.59559401]
[1758692840671,0.68,210.26,210.22,13.59559401]
[1758692840871,0.68,210.25,210.22,18.35251533]
[1758692841171,0.1,210.28,210.22,18.35251533]
[1758692841172,26.68,210.27,210.22,18.35251533]
[1758692841371,0.68,210.26,210.22,18.35251533]
[1758692841786,0.78,210.28,210.22,18.35251533]
[1758692842975,0.68,210.27,210.22,18.35251533]
[1758692843175,0.68,210.26,210.22,18.35251533]
[1758692843799,0.1,210.28,210.23,2.36786567]
[1758692844092,0.78,210.28,210.25,13.59559401]
[1758692844296,0.1,210.28,210.25,13.59559401]
[1758692844476,0.68,210.27,210.25,13.59559401]
[1758692845577,0.1,210.28,210.27,13.59559401]
[1758692845779,0.1,210.28,210.27,50.83559401]
[1758692846319,0.1,210.28,210.27,53.20345968]
[1758692847303,0.1,210.28,210.27,57.95924985]
[1758692848899,0.1,210.28,210.27,20.71924985]
[1758692849218,0.78,210.28,210.25,16.66481327]
[1758692849510,0.68,210.27,210.26,50.91559401]
[1758692849877,0.68,210.27,210.26,37.32]
[1758692852906,0.68,210.27,210.24,13.59559401]
[1758692853106,0.68,210.26,210.25,50.89559401]
[1758692854890,4.75600013,210.27,210.18,11.89421677]
[1758692855130,4.75600013,210.27,210.18,13.59559401]
[1758692855131,26.0,210.24,210.18,13.59559401]
[1758692855420,0.68,210.23,210.2,13.59559401]
[1758692855623,0.68,210.22,210.21,37.26]
[1758692856357,0.68,210.22,210.17,38.6]
[1758692856358,5.43692132,210.22,210.17,38.6]
[1758692856621,0.68,210.21,210.18,37.26]
[1758692856793,4.75668518,210.24,210.18,37.26]
[1758692856989,26.68,210.23,210.19,13.59559401]
[1758692857197,0.68,210.22,210.2,37.26]
[1758692857513,11.98926069,210.28,210.2,37.26]
[1758692857514,0.68,210.21,210.2,37.26]
[1758692858399,11.98926069,210.28,210.21,13.59559401]
[1758692858400,26.0,210.25,210.21,13.59559401]